{"text_format":"1","workbook":"xlsx","n_sheets":3,"sheets":["modele","objectifs de la protection","Liste"],"not_rendered":{"charts":0,"images":0,"macros":1,"external_links":0,"defined_names":1,"comments":0,"pivot_tables":0},"unopened":[],"bounds":{"document_bytes":16777216,"sheet_cells":100000,"rows_first":2000,"rows_last":500,"rows_between":2000,"halvings":0,"cell_chars":16384,"cell_head_chars":4096},"cells_cut":0,"cells_raw":0,"read":"whole","date_system":"1900"}

{"sheet":"modele","index":0,"n_rows":375,"n_cols":19,"rows_kept":375,"cut":false,"hidden":false,"merged":[[8,9,8,11],[222,9,222,11],[253,9,253,11],[0,8,0,13],[1,8,1,13],[2,8,2,13],[3,9,3,11]]}
[null,null,null,null,null,null,null,null,"Une fois rempli, veuillez retourner ce questionnaire avant le  \n"]
[]
[null,null,null,null,null,null,null,null,"ne pas apporter de modifications à la structure du fichier"]
["Colonnes à cacher",null,null,null,null,null,null,null,"Région"]
[]
["Code 1","Code 2","Code 3","Code 4","Code 5","Code 6","Code 7","Code 8"]
["Code 1","Code 2","Code 3","Code 4","Code 5","Code 6","Code 7","Code 8","I- TITRE 1",null,null,null,null,null,null,null,null,null,"Col à masquer"]
["Code 1","Code 2","Code 3","Code 4","Code 5","Code 6","Code 7","Code 8",null,null,null,null,null,null,null,null,null,null,"Col à masquer"]
["Code 1","Code 2","Code 3","Code 4","Code 5","Code 6","Code 7","Code 8","I-1 TITRE 2",null,null,null,null,null,null,null,null,null,"Col à masquer"]
["Code 1","Code 2","Code 3","Code 4","Code 5","Code 6","Code 7","Code 8",null,null,null,null,null,null,null,null,null,null,"Col à masquer"]
["Code 1","Code 2","Code 3","Code 4","Code 5","Code 6","Code 7","Code 8","Prestation 1","Var 1","Var 2","Var 3",null,null,null,null,null,null,"Col à masquer"]
["Code 1","Code 2","Code 3","Code 4","Code 5","Code 6","Code 7","Code 8","intitulé 1",0,0,0,null,null,null,null,null,null,"Col à masquer"]
["Code 1","Code 2","Code 3","Code 4","Code 5","Code 6","Code 7","Code 8","intitulé 2",0,0,0,null,null,null,null,null,null,"Col à masquer"]
["Code 1","Code 2","Code 3","Code 4","Code 5","Code 6","Code 7","Code 8",null,null,null,null,null,null,null,null,null,null,"Col à masquer"]
["Code 1","Code 2","Code 3","Code 4","Code 5","Code 6","Code 7","Code 8",null,null,null,null,null,null,null,null,null,null,"Col à masquer"]
["Code 1","Code 2","Code 3","Code 4","Code 5","Code 6","Code 7","Code 8","Prestation 2","Var 1","Var 2","Var 3",null,null,null,null,null,null,"Col à masquer"]
["Code 1","Code 2","Code 3","Code 4","Code 5","Code 6","Code 7","Code 8","intitulé 1",0,0,0,null,null,null,null,null,null,"Col à masquer"]
["Code 1","Code 2","Code 3","Code 4","Code 5","Code 6","Code 7","Code 8","intitulé 2",0,0,0,null,null,null,null,null,null,"Col à masquer"]
["Code 1","Code 2","Code 3","Code 4","Code 5","Code 6","Code 7","Code 8","intitulé 3",0,0,0,null,null,null,null,null,null,"Col à masquer"]
["Code 1","Code 2","Code 3","Code 4","Code 5","Code 6","Code 7","Code 8","intitulé 4",0,0,0,null,null,null,null,null,null,"Col à masquer"]
["Code 1","Code 2","Code 3","Code 4","Code 5","Code 6","Code 7","Code 8","intitulé 5",0,0,0,null,null,null,null,null,null,"Col à masquer"]
["Code 1","Code 2","Code 3","Code 4","Code 5","Code 6","Code 7","Code 8","intitulé 6",0,0,0,null,null,null,null,null,null,"Col à masquer"]
["Code 1","Code 2","Code 3","Code 4","Code 5","Code 6","Code 7","Code 8","Total",{"$f":"SUM(J17:J22)","v":0},{"$f":"SUM(K17:K22)","v":0},{"$f":"SUM(L17:L22)","v":0},null,null,null,null,null,null,"Col à masquer"]
["Code 1","Code 2","Code 3","Code 4","Code 5","Code 6","Code 7","Code 8","nombre de bénéficiaires",0,0,0,null,null,null,null,null,null,"Col à masquer"]
["Code 1","Code 2","Code 3","Code 4","Code 5","Code 6","Code 7","Code 8",null,null,null,null,null,null,null,null,null,null,"Col à masquer"]
["Code 1","Code 2","Code 3","Code 4","Code 5","Code 6","Code 7","Code 8",null,null,null,null,null,null,null,null,null,null,"Col à masquer"]
["Code 1","Code 2","Code 3","Code 4","Code 5","Code 6","Code 7","Code 8","Prestation 3","Var 1","Var 2","Var 3",null,null,null,null,null,null,"Col à masquer"]
["Code 1","Code 2","Code 3","Code 4","Code 5","Code 6","Code 7","Code 8","intitulé 1",0,0,0,null,null,null,null,null,null,"Col à masquer"]
["Code 1","Code 2","Code 3","Code 4","Code 5","Code 6","Code 7","Code 8","intitulé 2",0,0,0,null,null,null,null,null,null,"Col à masquer"]
["Code 1","Code 2","Code 3","Code 4","Code 5","Code 6","Code 7","Code 8","intitulé 3",0,0,0,null,null,null,null,null,null,"Col à masquer"]
["Code 1","Code 2","Code 3","Code 4","Code 5","Code 6","Code 7","Code 8","intitulé 4",0,0,0,null,null,null,null,null,null,"Col à masquer"]
["Code 1","Code 2","Code 3","Code 4","Code 5","Code 6","Code 7","Code 8","intitulé 5",0,0,0,null,null,null,null,null,null,"Col à masquer"]
["Code 1","Code 2","Code 3","Code 4","Code 5","Code 6","Code 7","Code 8","intitulé 6",0,0,0,null,null,null,null,null,null,"Col à masquer"]
["Code 1","Code 2","Code 3","Code 4","Code 5","Code 6","Code 7","Code 8","Total",{"$f":"SUM(J28:J33)","v":0},{"$f":"SUM(K28:K33)","v":0},{"$f":"SUM(L28:L33)","v":0},null,null,null,null,null,null,"Col à masquer"]
["Code 1","Code 2","Code 3","Code 4","Code 5","Code 6","Code 7","Code 8","nombre de bénéficiaires",0,0,0,null,null,null,null,null,null,"Col à masquer"]
["Code 1","Code 2","Code 3","Code 4","Code 5","Code 6","Code 7","Code 8",null,null,null,null,null,null,null,null,null,null,"Col à masquer"]
["Code 1","Code 2","Code 3","Code 4","Code 5","Code 6","Code 7","Code 8",null,null,null,null,null,null,null,null,null,null,"Col à masquer"]
["Code 1","Code 2","Code 3","Code 4","Code 5","Code 6","Code 7","Code 8","Prestation 4","Var 1","Var 2","Var 3",null,null,null,null,null,null,"Col à masquer"]
["Code 1","Code 2","Code 3","Code 4","Code 5","Code 6","Code 7","Code 8","intitulé 1",0,0,0,null,null,null,null,null,null,"Col à masquer"]
["Code 1","Code 2","Code 3","Code 4","Code 5","Code 6","Code 7","Code 8","intitulé 2",0,0,0,null,null,null,null,null,null,"Col à masquer"]
["Code 1","Code 2","Code 3","Code 4","Code 5","Code 6","Code 7","Code 8","intitulé 3",0,0,0,null,null,null,null,null,null,"Col à masquer"]
["Code 1","Code 2","Code 3","Code 4","Code 5","Code 6","Code 7","Code 8","intitulé 4",0,0,0,null,null,null,null,null,null,"Col à masquer"]
["Code 1","Code 2","Code 3","Code 4","Code 5","Code 6","Code 7","Code 8","intitulé 5",0,0,0,null,null,null,null,null,null,"Col à masquer"]
["Code 1","Code 2","Code 3","Code 4","Code 5","Code 6","Code 7","Code 8","intitulé 6",0,0,0,null,null,null,null,null,null,"Col à masquer"]
["Code 1","Code 2","Code 3","Code 4","Code 5","Code 6","Code 7","Code 8","Total",{"$f":"SUM(J39:J44)","v":0},{"$f":"SUM(K39:K44)","v":0},{"$f":"SUM(L39:L44)","v":0},null,null,null,null,null,null,"Col à masquer"]
["Code 1","Code 2","Code 3","Code 4","Code 5","Code 6","Code 7","Code 8","nombre de bénéficiaires",0,0,0,null,null,null,null,null,null,"Col à masquer"]
["Code 1","Code 2","Code 3","Code 4","Code 5","Code 6","Code 7","Code 8",null,null,null,null,null,null,null,null,null,null,"Col à masquer"]
["Code 1","Code 2","Code 3","Code 4","Code 5","Code 6","Code 7","Code 8",null,null,null,null,null,null,null,null,null,null,"Col à masquer"]
["Code 1","Code 2","Code 3","Code 4","Code 5","Code 6","Code 7","Code 8","Prestation 5","Var 1","Var 2","Var 3",null,null,null,null,null,null,"Col à masquer"]
["Code 1","Code 2","Code 3","Code 4","Code 5","Code 6","Code 7","Code 8","intitulé 1",0,0,0,null,null,null,null,null,null,"Col à masquer"]
["Code 1","Code 2","Code 3","Code 4","Code 5","Code 6","Code 7","Code 8","intitulé 2",0,0,0,null,null,null,null,null,null,"Col à masquer"]
["Code 1","Code 2","Code 3","Code 4","Code 5","Code 6","Code 7","Code 8","intitulé 3",0,0,0,null,null,null,null,null,null,"Col à masquer"]
["Code 1","Code 2","Code 3","Code 4","Code 5","Code 6","Code 7","Code 8","intitulé 4",0,0,0,null,null,null,null,null,null,"Col à masquer"]
["Code 1","Code 2","Code 3","Code 4","Code 5","Code 6","Code 7","Code 8","intitulé 5",0,0,0,null,null,null,null,null,null,"Col à masquer"]
["Code 1","Code 2","Code 3","Code 4","Code 5","Code 6","Code 7","Code 8","intitulé 6",0,0,0,null,null,null,null,null,null,"Col à masquer"]
["Code 1","Code 2","Code 3","Code 4","Code 5","Code 6","Code 7","Code 8","Total",{"$f":"SUM(J50:J55)","v":0},{"$f":"SUM(K50:K55)","v":0},{"$f":"SUM(L50:L55)","v":0},null,null,null,null,null,null,"Col à masquer"]
["Code 1","Code 2","Code 3","Code 4","Code 5","Code 6","Code 7","Code 8","nombre de bénéficiaires",0,0,0,null,null,null,null,null,null,"Col à masquer"]
["Code 1","Code 2","Code 3","Code 4","Code 5","Code 6","Code 7","Code 8",null,null,null,null,null,null,null,null,null,null,"Col à masquer"]
["Code 1","Code 2","Code 3","Code 4","Code 5","Code 6","Code 7","Code 8",null,null,null,null,null,null,null,null,null,null,"Col à masquer"]
["Code 1","Code 2","Code 3","Code 4","Code 5","Code 6","Code 7","Code 8","Prestation 6","Var 1","Var 2","Var 3",null,null,null,null,null,null,"Col à masquer"]
["Code 1","Code 2","Code 3","Code 4","Code 5","Code 6","Code 7","Code 8","intitulé 1",0,0,0,null,null,null,null,null,null,"Col à masquer"]
["Code 1","Code 2","Code 3","Code 4","Code 5","Code 6","Code 7","Code 8","intitulé 2",0,0,0,null,null,null,null,null,null,"Col à masquer"]
["Code 1","Code 2","Code 3","Code 4","Code 5","Code 6","Code 7","Code 8","intitulé 3",0,0,0,null,null,null,null,null,null,"Col à masquer"]
["Code 1","Code 2","Code 3","Code 4","Code 5","Code 6","Code 7","Code 8","intitulé 4",0,0,0,null,null,null,null,null,null,"Col à masquer"]
["Code 1","Code 2","Code 3","Code 4","Code 5","Code 6","Code 7","Code 8","intitulé 5",0,0,0,null,null,null,null,null,null,"Col à masquer"]
["Code 1","Code 2","Code 3","Code 4","Code 5","Code 6","Code 7","Code 8","intitulé 6",0,0,0,null,null,null,null,null,null,"Col à masquer"]
["Code 1","Code 2","Code 3","Code 4","Code 5","Code 6","Code 7","Code 8","Total",{"$f":"SUM(J61:J66)","v":0},{"$f":"SUM(K61:K66)","v":0},{"$f":"SUM(L61:L66)","v":0},null,null,null,null,null,null,"Col à masquer"]
["Code 1","Code 2","Code 3","Code 4","Code 5","Code 6","Code 7","Code 8","nombre de bénéficiaires",0,0,0,null,null,null,null,null,null,"Col à masquer"]
["Code 1","Code 2","Code 3","Code 4","Code 5","Code 6","Code 7","Code 8",null,null,null,null,null,null,null,null,null,null,"Col à masquer"]
["Code 1","Code 2","Code 3","Code 4","Code 5","Code 6","Code 7","Code 8",null,null,null,null,null,null,null,null,null,null,"Col à masquer"]
["Code 1","Code 2","Code 3","Code 4","Code 5","Code 6","Code 7","Code 8","Prestation 7","Var 1","Var 2","Var 3",null,null,null,null,null,null,"Col à masquer"]
["Code 1","Code 2","Code 3","Code 4","Code 5","Code 6","Code 7","Code 8","intitulé 1",0,0,0,null,null,null,null,null,null,"Col à masquer"]
["Code 1","Code 2","Code 3","Code 4","Code 5","Code 6","Code 7","Code 8","intitulé 2",0,0,0,null,null,null,null,null,null,"Col à masquer"]
["Code 1","Code 2","Code 3","Code 4","Code 5","Code 6","Code 7","Code 8","intitulé 3",0,0,0,null,null,null,null,null,null,"Col à masquer"]
["Code 1","Code 2","Code 3","Code 4","Code 5","Code 6","Code 7","Code 8","intitulé 4",0,0,0,null,null,null,null,null,null,"Col à masquer"]
["Code 1","Code 2","Code 3","Code 4","Code 5","Code 6","Code 7","Code 8","intitulé 5",0,0,0,null,null,null,null,null,null,"Col à masquer"]
["Code 1","Code 2","Code 3","Code 4","Code 5","Code 6","Code 7","Code 8","intitulé 6",0,0,0,null,null,null,null,null,null,"Col à masquer"]
["Code 1","Code 2","Code 3","Code 4","Code 5","Code 6","Code 7","Code 8","Total",{"$f":"SUM(J72:J77)","v":0},{"$f":"SUM(K72:K77)","v":0},{"$f":"SUM(L72:L77)","v":0},null,null,null,null,null,null,"Col à masquer"]
["Code 1","Code 2","Code 3","Code 4","Code 5","Code 6","Code 7","Code 8","nombre de bénéficiaires",0,0,0,null,null,null,null,null,null,"Col à masquer"]
["Code 1","Code 2","Code 3","Code 4","Code 5","Code 6","Code 7","Code 8",null,null,null,null,null,null,null,null,null,null,"Col à masquer"]
["Code 1","Code 2","Code 3","Code 4","Code 5","Code 6","Code 7","Code 8",null,null,null,null,null,null,null,null,null,null,"Col à masquer"]
["Code 1","Code 2","Code 3","Code 4","Code 5","Code 6","Code 7","Code 8",null,null,null,null,null,null,null,null,null,null,"Col à masquer"]
["Code 1","Code 2","Code 3","Code 4","Code 5","Code 6","Code 7","Code 8","Prestation 8","Var 1","Var 2","Var 3",null,null,null,null,null,null,"Col à masquer"]
["Code 1","Code 2","Code 3","Code 4","Code 5","Code 6","Code 7","Code 8","intitulé 1",0,0,0,null,null,null,null,null,null,"Col à masquer"]
["Code 1","Code 2","Code 3","Code 4","Code 5","Code 6","Code 7","Code 8","intitulé 2",0,0,0,null,null,null,null,null,null,"Col à masquer"]
["Code 1","Code 2","Code 3","Code 4","Code 5","Code 6","Code 7","Code 8","intitulé 3",0,0,0,null,null,null,null,null,null,"Col à masquer"]
["Code 1","Code 2","Code 3","Code 4","Code 5","Code 6","Code 7","Code 8","intitulé 4",0,0,0,null,null,null,null,null,null,"Col à masquer"]
["Code 1","Code 2","Code 3","Code 4","Code 5","Code 6","Code 7","Code 8","intitulé 5",0,0,0,null,null,null,null,null,null,"Col à masquer"]
["Code 1","Code 2","Code 3","Code 4","Code 5","Code 6","Code 7","Code 8","intitulé 6",0,0,0,null,null,null,null,null,null,"Col à masquer"]
["Code 1","Code 2","Code 3","Code 4","Code 5","Code 6","Code 7","Code 8","Total",{"$f":"SUM(J84:J89)","v":0},{"$f":"SUM(K84:K89)","v":0},{"$f":"SUM(L84:L89)","v":0},null,null,null,null,null,null,"Col à masquer"]
["Code 1","Code 2","Code 3","Code 4","Code 5","Code 6","Code 7","Code 8","nombre de bénéficiaires",0,0,0,null,null,null,null,null,null,"Col à masquer"]
["Code 1","Code 2","Code 3","Code 4","Code 5","Code 6","Code 7","Code 8",null,null,null,null,null,null,null,null,null,null,"Col à masquer"]
["Code 1","Code 2","Code 3","Code 4","Code 5","Code 6","Code 7","Code 8",null,null,null,null,null,null,null,null,null,null,"Col à masquer"]
["Code 1","Code 2","Code 3","Code 4","Code 5","Code 6","Code 7","Code 8","Prestation 9","Var 1","Var 2","Var 3",null,null,null,null,null,null,"Col à masquer"]
["Code 1","Code 2","Code 3","Code 4","Code 5","Code 6","Code 7","Code 8","intitulé 1",0,0,0,null,null,null,null,null,null,"Col à masquer"]
["Code 1","Code 2","Code 3","Code 4","Code 5","Code 6","Code 7","Code 8","intitulé 2",0,0,0,null,null,null,null,null,null,"Col à masquer"]
["Code 1","Code 2","Code 3","Code 4","Code 5","Code 6","Code 7","Code 8","intitulé 3",0,0,0,null,null,null,null,null,null,"Col à masquer"]
["Code 1","Code 2","Code 3","Code 4","Code 5","Code 6","Code 7","Code 8","intitulé 4",0,0,0,null,null,null,null,null,null,"Col à masquer"]
["Code 1","Code 2","Code 3","Code 4","Code 5","Code 6","Code 7","Code 8","intitulé 5",0,0,0,null,null,null,null,null,null,"Col à masquer"]
["Code 1","Code 2","Code 3","Code 4","Code 5","Code 6","Code 7","Code 8","intitulé 6",0,0,0,null,null,null,null,null,null,"Col à masquer"]
["Code 1","Code 2","Code 3","Code 4","Code 5","Code 6","Code 7","Code 8","Total",{"$f":"SUM(J95:J100)","v":0},{"$f":"SUM(K95:K100)","v":0},{"$f":"SUM(L95:L100)","v":0},null,null,null,null,null,null,"Col à masquer"]
["Code 1","Code 2","Code 3","Code 4","Code 5","Code 6","Code 7","Code 8","nombre de bénéficiaires",0,0,0,null,null,null,null,null,null,"Col à masquer"]
["Code 1","Code 2","Code 3","Code 4","Code 5","Code 6","Code 7","Code 8",null,null,null,null,null,null,null,null,null,null,"Col à masquer"]
["Code 1","Code 2","Code 3","Code 4","Code 5","Code 6","Code 7","Code 8",null,null,null,null,null,null,null,null,null,null,"Col à masquer"]
["Code 1","Code 2","Code 3","Code 4","Code 5","Code 6","Code 7","Code 8","I-2 Dépenses",null,null,null,null,null,null,null,null,null,"Col à masquer"]
["Code 1","Code 2","Code 3","Code 4","Code 5","Code 6","Code 7","Code 8",null,"Var 1","Var 2","Var 3",null,null,null,null,null,null,"Col à masquer"]
["Code 1","Code 2","Code 3","Code 4","Code 5","Code 6","Code 7","Code 8","Prestation 1",0,0,0,null,null,null,null,null,null,"Col à masquer"]
["Code 1","Code 2","Code 3","Code 4","Code 5","Code 6","Code 7","Code 8","Prestation 2",0,0,0,null,null,null,null,null,null,"Col à masquer"]
["Code 1","Code 2","Code 3","Code 4","Code 5","Code 6","Code 7","Code 8","Prestation 3",0,0,0,null,null,null,null,null,null,"Col à masquer"]
["Code 1","Code 2","Code 3","Code 4","Code 5","Code 6","Code 7","Code 8","Prestation 4",0,0,0,null,null,null,null,null,null,"Col à masquer"]
["Code 1","Code 2","Code 3","Code 4","Code 5","Code 6","Code 7","Code 8","Prestation 5",0,0,0,null,null,null,null,null,null,"Col à masquer"]
["Code 1","Code 2","Code 3","Code 4","Code 5","Code 6","Code 7","Code 8","Prestation 6",0,0,0,null,null,null,null,null,null,"Col à masquer"]
["Code 1","Code 2","Code 3","Code 4","Code 5","Code 6","Code 7","Code 8","Prestation 7",0,0,0,null,null,null,null,null,null,"Col à masquer"]
["Code 1","Code 2","Code 3","Code 4","Code 5","Code 6","Code 7","Code 8","Prestation 8",0,0,0,null,null,null,null,null,null,"Col à masquer"]
["Code 1","Code 2","Code 3","Code 4","Code 5","Code 6","Code 7","Code 8","Prestation 9",0,0,0,null,null,null,null,null,null,"Col à masquer"]
["Code 1","Code 2","Code 3","Code 4","Code 5","Code 6","Code 7","Code 8","Total",{"$f":"SUM(J107:J115)","v":0},{"$f":"SUM(K107:K115)","v":0},{"$f":"SUM(L107:L115)","v":0},null,null,null,null,null,null,"Col à masquer"]
["Code 1","Code 2","Code 3","Code 4","Code 5","Code 6","Code 7","Code 8",null,null,null,null,null,null,null,null,null,null,"Col à masquer"]
["Code 1","Code 2","Code 3","Code 4","Code 5","Code 6","Code 7","Code 8",null,null,null,null,null,null,null,null,null,null,"Col à masquer"]
["Code 1","Code 2","Code 3","Code 4","Code 5","Code 6","Code 7","Code 8","I-3 Nombres de jours",null,null,null,null,null,null,null,null,null,"Col à masquer"]
["Code 1","Code 2","Code 3","Code 4","Code 5","Code 6","Code 7","Code 8",null,"Var 1","Var 2","Var 3",null,null,null,null,null,null,"Col à masquer"]
["Code 1","Code 2","Code 3","Code 4","Code 5","Code 6","Code 7","Code 8","Prestation 1",0,0,0,null,null,null,null,null,null,"Col à masquer"]
["Code 1","Code 2","Code 3","Code 4","Code 5","Code 6","Code 7","Code 8","Prestation 2",0,0,0,null,null,null,null,null,null,"Col à masquer"]
["Code 1","Code 2","Code 3","Code 4","Code 5","Code 6","Code 7","Code 8","Prestation 3",0,0,0,null,null,null,null,null,null,"Col à masquer"]
["Code 1","Code 2","Code 3","Code 4","Code 5","Code 6","Code 7","Code 8","Prestation 4",0,0,0,null,null,null,null,null,null,"Col à masquer"]
["Code 1","Code 2","Code 3","Code 4","Code 5","Code 6","Code 7","Code 8","Prestation 5",0,0,0,null,null,null,null,null,null,"Col à masquer"]
["Code 1","Code 2","Code 3","Code 4","Code 5","Code 6","Code 7","Code 8","Prestation 6",0,0,0,null,null,null,null,null,null,"Col à masquer"]
["Code 1","Code 2","Code 3","Code 4","Code 5","Code 6","Code 7","Code 8",null,null,null,null,null,null,null,null,null,null,"Col à masquer"]
["Code 1","Code 2","Code 3","Code 4","Code 5","Code 6","Code 7","Code 8",null,null,null,null,null,null,null,null,null,null,"Col à masquer"]
["Code 1","Code 2","Code 3","Code 4","Code 5","Code 6","Code 7","Code 8","II TITRE 2",null,null,null,null,null,null,null,null,null,"Col à masquer"]
["Code 1","Code 2","Code 3","Code 4","Code 5","Code 6","Code 7","Code 8",null,null,null,null,null,null,null,null,null,null,"Col à masquer"]
["Code 1","Code 2","Code 3","Code 4","Code 5","Code 6","Code 7","Code 8","II-1 Données globales",null,null,null,null,null,null,null,null,null,"Col à masquer"]
["Code 1","Code 2","Code 3","Code 4","Code 5","Code 6","Code 7","Code 8",null,null,null,null,null,null,null,null,null,null,"Col à masquer"]
["Code 1","Code 2","Code 3","Code 4","Code 5","Code 6","Code 7","Code 8","II-1-1 Bénéficiaires ",null,null,null,null,null,null,null,null,null,"Col à masquer"]
["Code 1","Code 2","Code 3","Code 4","Code 5","Code 6","Code 7","Code 8",null,null,null,null,null,null,null,null,null,null,"Col à masquer"]
["Code 1","Code 2","Code 3","Code 4","Code 5","Code 6","Code 7","Code 8","Aide 1","Var 1","Var 2","Var 3",null,null,null,null,null,null,"Col à masquer"]
["Code 1","Code 2","Code 3","Code 4","Code 5","Code 6","Code 7","Code 8","Catégorie 1",0,0,0,null,null,null,null,null,null,"Col à masquer"]
["Code 1","Code 2","Code 3","Code 4","Code 5","Code 6","Code 7","Code 8","Catégorie 2",0,0,0,null,null,null,null,null,null,"Col à masquer"]
["Code 1","Code 2","Code 3","Code 4","Code 5","Code 6","Code 7","Code 8","Catégorie 3",0,0,0,null,null,null,null,null,null,"Col à masquer"]
["Code 1","Code 2","Code 3","Code 4","Code 5","Code 6","Code 7","Code 8","Catégorie 4",0,0,0,null,null,null,null,null,null,"Col à masquer"]
["Code 1","Code 2","Code 3","Code 4","Code 5","Code 6","Code 7","Code 8","Catégorie 5",0,0,0,null,null,null,null,null,null,"Col à masquer"]
["Code 1","Code 2","Code 3","Code 4","Code 5","Code 6","Code 7","Code 8","Catégorie 6",0,0,0,null,null,null,null,null,null,"Col à masquer"]
["Code 1","Code 2","Code 3","Code 4","Code 5","Code 6","Code 7","Code 8","Total",{"$f":"SUM(J136:J141)","v":0},{"$f":"SUM(K136:K141)","v":0},{"$f":"SUM(L136:L141)","v":0},null,null,null,null,null,null,"Col à masquer"]
["Code 1","Code 2","Code 3","Code 4","Code 5","Code 6","Code 7","Code 8",null,null,null,null,null,null,null,null,null,null,"Col à masquer"]
["Code 1","Code 2","Code 3","Code 4","Code 5","Code 6","Code 7","Code 8",null,null,null,null,null,null,null,null,null,null,"Col à masquer"]
["Code 1","Code 2","Code 3","Code 4","Code 5","Code 6","Code 7","Code 8","Aide 2","Var 1","Var 2","Var 3",null,null,null,null,null,null,"Col à masquer"]
["Code 1","Code 2","Code 3","Code 4","Code 5","Code 6","Code 7","Code 8","Catégorie 1",0,0,0,null,null,null,null,null,null,"Col à masquer"]
["Code 1","Code 2","Code 3","Code 4","Code 5","Code 6","Code 7","Code 8","Catégorie 2",0,0,0,null,null,null,null,null,null,"Col à masquer"]
["Code 1","Code 2","Code 3","Code 4","Code 5","Code 6","Code 7","Code 8","Catégorie 3",0,0,0,null,null,null,null,null,null,"Col à masquer"]
["Code 1","Code 2","Code 3","Code 4","Code 5","Code 6","Code 7","Code 8","Catégorie 4",0,0,0,null,null,null,null,null,null,"Col à masquer"]
["Code 1","Code 2","Code 3","Code 4","Code 5","Code 6","Code 7","Code 8","Total",{"$f":"SUM(J146:J149)","v":0},{"$f":"SUM(K146:K149)","v":0},{"$f":"SUM(L146:L149)","v":0},null,null,null,null,null,null,"Col à masquer"]
["Code 1","Code 2","Code 3","Code 4","Code 5","Code 6","Code 7","Code 8",null,null,null,null,null,null,null,null,null,null,"Col à masquer"]
["Code 1","Code 2","Code 3","Code 4","Code 5","Code 6","Code 7","Code 8",null,null,null,null,null,null,null,null,null,null,"Col à masquer"]
["Code 1","Code 2","Code 3","Code 4","Code 5","Code 6","Code 7","Code 8","Aide 3","Var 1","Var 2","Var 3",null,null,null,null,null,null,"Col à masquer"]
["Code 1","Code 2","Code 3","Code 4","Code 5","Code 6","Code 7","Code 8","Catégorie 1",0,0,0,null,null,null,null,null,null,"Col à masquer"]
["Code 1","Code 2","Code 3","Code 4","Code 5","Code 6","Code 7","Code 8","Catégorie 2",0,0,0,null,null,null,null,null,null,"Col à masquer"]
["Code 1","Code 2","Code 3","Code 4","Code 5","Code 6","Code 7","Code 8","Catégorie 3",0,0,0,null,null,null,null,null,null,"Col à masquer"]
["Code 1","Code 2","Code 3","Code 4","Code 5","Code 6","Code 7","Code 8","Catégorie 4",0,0,0,null,null,null,null,null,null,"Col à masquer"]
["Code 1","Code 2","Code 3","Code 4","Code 5","Code 6","Code 7","Code 8","Catégorie 5",0,0,0,null,null,null,null,null,null,"Col à masquer"]
["Code 1","Code 2","Code 3","Code 4","Code 5","Code 6","Code 7","Code 8","Catégorie 6",0,0,0,null,null,null,null,null,null,"Col à masquer"]
["Code 1","Code 2","Code 3","Code 4","Code 5","Code 6","Code 7","Code 8","Total",{"$f":"SUM(J154:J159)","v":0},{"$f":"SUM(K154:K159)","v":0},{"$f":"SUM(L154:L159)","v":0},null,null,null,null,null,null,"Col à masquer"]
["Code 1","Code 2","Code 3","Code 4","Code 5","Code 6","Code 7","Code 8",null,null,null,null,null,null,null,null,null,null,"Col à masquer"]
["Code 1","Code 2","Code 3","Code 4","Code 5","Code 6","Code 7","Code 8",null,null,null,null,null,null,null,null,null,null,"Col à masquer"]
["Code 1","Code 2","Code 3","Code 4","Code 5","Code 6","Code 7","Code 8","Aide 4","Var 1","Var 2","Var 3",null,null,null,null,null,null,"Col à masquer"]
["Code 1","Code 2","Code 3","Code 4","Code 5","Code 6","Code 7","Code 8","Catégorie 1",0,0,0,null,null,null,null,null,null,"Col à masquer"]
["Code 1","Code 2","Code 3","Code 4","Code 5","Code 6","Code 7","Code 8","Catégorie 2",0,0,0,null,null,null,null,null,null,"Col à masquer"]
["Code 1","Code 2","Code 3","Code 4","Code 5","Code 6","Code 7","Code 8","Catégorie 3",0,0,0,null,null,null,null,null,null,"Col à masquer"]
["Code 1","Code 2","Code 3","Code 4","Code 5","Code 6","Code 7","Code 8","Catégorie 4",0,0,0,null,null,null,null,null,null,"Col à masquer"]
["Code 1","Code 2","Code 3","Code 4","Code 5","Code 6","Code 7","Code 8","Catégorie 5",0,0,0,null,null,null,null,null,null,"Col à masquer"]
["Code 1","Code 2","Code 3","Code 4","Code 5","Code 6","Code 7","Code 8","Catégorie 6",0,0,0,null,null,null,null,null,null,"Col à masquer"]
["Code 1","Code 2","Code 3","Code 4","Code 5","Code 6","Code 7","Code 8","Total",{"$f":"SUM(J164:J169)","v":0},{"$f":"SUM(K164:K169)","v":0},{"$f":"SUM(L164:L169)","v":0},null,null,null,null,null,null,"Col à masquer"]
["Code 1","Code 2","Code 3","Code 4","Code 5","Code 6","Code 7","Code 8","nombre bénéficiaires",0,0,0,null,null,null,null,null,null,"Col à masquer"]
["Code 1","Code 2","Code 3","Code 4","Code 5","Code 6","Code 7","Code 8",null,null,null,null,null,null,null,null,null,null,"Col à masquer"]
["Code 1","Code 2","Code 3","Code 4","Code 5","Code 6","Code 7","Code 8",null,null,null,null,null,null,null,null,null,null,"Col à masquer"]
["Code 1","Code 2","Code 3","Code 4","Code 5","Code 6","Code 7","Code 8","Aide 5","Var 1","Var 2","Var 3",null,null,null,null,null,null,"Col à masquer"]
["Code 1","Code 2","Code 3","Code 4","Code 5","Code 6","Code 7","Code 8","Catégorie 1",0,0,0,null,null,null,null,null,null,"Col à masquer"]
["Code 1","Code 2","Code 3","Code 4","Code 5","Code 6","Code 7","Code 8","Catégorie 2",0,0,0,null,null,null,null,null,null,"Col à masquer"]
["Code 1","Code 2","Code 3","Code 4","Code 5","Code 6","Code 7","Code 8","Catégorie 3",0,0,0,null,null,null,null,null,null,"Col à masquer"]
["Code 1","Code 2","Code 3","Code 4","Code 5","Code 6","Code 7","Code 8","Catégorie 4",0,0,0,null,null,null,null,null,null,"Col à masquer"]
["Code 1","Code 2","Code 3","Code 4","Code 5","Code 6","Code 7","Code 8","Catégorie 5",0,0,0,null,null,null,null,null,null,"Col à masquer"]
["Code 1","Code 2","Code 3","Code 4","Code 5","Code 6","Code 7","Code 8","Catégorie 6",0,0,0,null,null,null,null,null,null,"Col à masquer"]
["Code 1","Code 2","Code 3","Code 4","Code 5","Code 6","Code 7","Code 8","Total",{"$f":"SUM(J175:J180)","v":0},{"$f":"SUM(K175:K180)","v":0},{"$f":"SUM(L175:L180)","v":0},null,null,null,null,null,null,"Col à masquer"]
["Code 1","Code 2","Code 3","Code 4","Code 5","Code 6","Code 7","Code 8","nombre bénéficiaires",0,0,0,null,null,null,null,null,null,"Col à masquer"]
["Code 1","Code 2","Code 3","Code 4","Code 5","Code 6","Code 7","Code 8",null,null,null,null,null,null,null,null,null,null,"Col à masquer"]
["Code 1","Code 2","Code 3","Code 4","Code 5","Code 6","Code 7","Code 8",null,null,null,null,null,null,null,null,null,null,"Col à masquer"]
["Code 1","Code 2","Code 3","Code 4","Code 5","Code 6","Code 7","Code 8","Aide 6","Var 1","Var 2","Var 3",null,null,null,null,null,null,"Col à masquer"]
["Code 1","Code 2","Code 3","Code 4","Code 5","Code 6","Code 7","Code 8","Catégorie 1",0,0,0,null,null,null,null,null,null,"Col à masquer"]
["Code 1","Code 2","Code 3","Code 4","Code 5","Code 6","Code 7","Code 8","Catégorie 2",0,0,0,null,null,null,null,null,null,"Col à masquer"]
["Code 1","Code 2","Code 3","Code 4","Code 5","Code 6","Code 7","Code 8","Catégorie 3",0,0,0,null,null,null,null,null,null,"Col à masquer"]
["Code 1","Code 2","Code 3","Code 4","Code 5","Code 6","Code 7","Code 8","Catégorie 4",0,0,0,null,null,null,null,null,null,"Col à masquer"]
["Code 1","Code 2","Code 3","Code 4","Code 5","Code 6","Code 7","Code 8","Total",{"$f":"SUM(J186:J189)","v":0},{"$f":"SUM(K186:K189)","v":0},{"$f":"SUM(L186:L189)","v":0},null,null,null,null,null,null,"Col à masquer"]
["Code 1","Code 2","Code 3","Code 4","Code 5","Code 6","Code 7","Code 8",null,null,null,null,null,null,null,null,null,null,"Col à masquer"]
["Code 1","Code 2","Code 3","Code 4","Code 5","Code 6","Code 7","Code 8",null,null,null,null,null,null,null,null,null,null,"Col à masquer"]
["Code 1","Code 2","Code 3","Code 4","Code 5","Code 6","Code 7","Code 8","Aide 7","Var 1","Var 2","Var 3",null,null,null,null,null,null,"Col à masquer"]
["Code 1","Code 2","Code 3","Code 4","Code 5","Code 6","Code 7","Code 8","Catégorie 1",0,0,0,null,null,null,null,null,null,"Col à masquer"]
["Code 1","Code 2","Code 3","Code 4","Code 5","Code 6","Code 7","Code 8","Catégorie 2",0,0,0,null,null,null,null,null,null,"Col à masquer"]
["Code 1","Code 2","Code 3","Code 4","Code 5","Code 6","Code 7","Code 8","Catégorie 3",0,0,0,null,null,null,null,null,null,"Col à masquer"]
["Code 1","Code 2","Code 3","Code 4","Code 5","Code 6","Code 7","Code 8","Catégorie 4",0,0,0,null,null,null,null,null,null,"Col à masquer"]
["Code 1","Code 2","Code 3","Code 4","Code 5","Code 6","Code 7","Code 8","Catégorie 5",0,0,0,null,null,null,null,null,null,"Col à masquer"]
["Code 1","Code 2","Code 3","Code 4","Code 5","Code 6","Code 7","Code 8","Catégorie 6",0,0,0,null,null,null,null,null,null,"Col à masquer"]
["Code 1","Code 2","Code 3","Code 4","Code 5","Code 6","Code 7","Code 8","Total",{"$f":"SUM(J194:J199)","v":0},{"$f":"SUM(K194:K199)","v":0},{"$f":"SUM(L194:L199)","v":0},null,null,null,null,null,null,"Col à masquer"]
["Code 1","Code 2","Code 3","Code 4","Code 5","Code 6","Code 7","Code 8",null,null,null,null,null,null,null,null,null,null,"Col à masquer"]
["Code 1","Code 2","Code 3","Code 4","Code 5","Code 6","Code 7","Code 8","II-1-2  dépenses",null,null,null,null,null,null,null,null,null,"Col à masquer"]
["Code 1","Code 2","Code 3","Code 4","Code 5","Code 6","Code 7","Code 8",null,null,null,null,null,null,null,null,null,null,"Col à masquer"]
["Code 1","Code 2","Code 3","Code 4","Code 5","Code 6","Code 7","Code 8",null,"Var 1","Var 2","Var 3",null,null,null,null,null,null,"Col à masquer"]
["Code 1","Code 2","Code 3","Code 4","Code 5","Code 6","Code 7","Code 8","Libelle 1",0,0,0,null,null,null,null,null,null,"Col à masquer"]
["Code 1","Code 2","Code 3","Code 4","Code 5","Code 6","Code 7","Code 8","Libelle 2",0,0,0,null,null,null,null,null,null,"Col à masquer"]
["Code 1","Code 2","Code 3","Code 4","Code 5","Code 6","Code 7","Code 8","Libelle 3",0,0,0,null,null,null,null,null,null,"Col à masquer"]
["Code 1","Code 2","Code 3","Code 4","Code 5","Code 6","Code 7","Code 8","Libelle 4",0,0,0,null,null,null,null,null,null,"Col à masquer"]
["Code 1","Code 2","Code 3","Code 4","Code 5","Code 6","Code 7","Code 8","Libelle 5",0,0,0,null,null,null,null,null,null,"Col à masquer"]
["Code 1","Code 2","Code 3","Code 4","Code 5","Code 6","Code 7","Code 8","Libelle 6",0,0,0,null,null,null,null,null,null,"Col à masquer"]
["Code 1","Code 2","Code 3","Code 4","Code 5","Code 6","Code 7","Code 8","Libelle 7",0,0,0,null,null,null,null,null,null,"Col à masquer"]
["Code 1","Code 2","Code 3","Code 4","Code 5","Code 6","Code 7","Code 8","Total",{"$f":"SUM(J205:J211)","v":0},{"$f":"SUM(K205:K211)","v":0},{"$f":"SUM(L205:L211)","v":0},null,null,null,null,null,null,"Col à masquer"]
["Code 1","Code 2","Code 3","Code 4","Code 5","Code 6","Code 7","Code 8",null,null,null,null,null,null,null,null,null,null,"Col à masquer"]
["Code 1","Code 2","Code 3","Code 4","Code 5","Code 6","Code 7","Code 8",null,null,null,null,null,null,null,null,null,null,"Col à masquer"]
["Code 1","Code 2","Code 3","Code 4","Code 5","Code 6","Code 7","Code 8",null,null,null,null,null,null,null,null,null,null,"Col à masquer"]
["Code 1","Code 2","Code 3","Code 4","Code 5","Code 6","Code 7","Code 8",null,null,null,null,null,null,null,null,null,null,"Col à masquer"]
["Code 1","Code 2","Code 3","Code 4","Code 5","Code 6","Code 7","Code 8","II-2 Détail ",null,null,null,null,null,null,null,null,null,"Col à masquer"]
["Code 1","Code 2","Code 3","Code 4","Code 5","Code 6","Code 7","Code 8",null,null,null,null,null,null,null,null,null,null,"Col à masquer"]
["Code 1","Code 2","Code 3","Code 4","Code 5","Code 6","Code 7","Code 8",null,null,null,null,null,null,null,null,null,null,"Col à masquer"]
["Code 1","Code 2","Code 3","Code 4","Code 5","Code 6","Code 7","Code 8",null,null,null,null,null,null,null,null,null,null,"Col à masquer"]
["Code 1","Code 2","Code 3","Code 4","Code 5","Code 6","Code 7","Code 8","II-2-1Détails",null,null,null,null,null,null,null,null,null,"Col à masquer"]
["Code 1","Code 2","Code 3","Code 4","Code 5","Code 6","Code 7","Code 8",null,null,null,null,null,null,null,null,null,null,"Col à masquer"]
["Code 1","Code 2","Code 3","Code 4","Code 5","Code 6","Code 7","Code 8","II-2-1-1 Bénéficiaires ",null,null,null,null,null,null,null,null,null,"Col à masquer"]
["Code 1","Code 2","Code 3","Code 4","Code 5","Code 6","Code 7","Code 8",null,null,null,null,null,null,null,null,null,null,"Col à masquer"]
["Code 1","Code 2","Code 3","Code 4","Code 5","Code 6","Code 7","Code 8","Rubrique 1","Var 1","Var 2","Var 3",null,null,null,null,null,null,"Col à masquer"]
["Code 1","Code 2","Code 3","Code 4","Code 5","Code 6","Code 7","Code 8","Lib 1",0,0,0,null,null,null,null,null,null,"Col à masquer"]
["Code 1","Code 2","Code 3","Code 4","Code 5","Code 6","Code 7","Code 8","Lib 2",0,0,0,null,null,null,null,null,null,"Col à masquer"]
["Code 1","Code 2","Code 3","Code 4","Code 5","Code 6","Code 7","Code 8","Lib 3",0,0,0,null,null,null,null,null,null,"Col à masquer"]
["Code 1","Code 2","Code 3","Code 4","Code 5","Code 6","Code 7","Code 8","Lib 4",0,0,0,null,null,null,null,null,null,"Col à masquer"]
["Code 1","Code 2","Code 3","Code 4","Code 5","Code 6","Code 7","Code 8","Lib 5",0,0,0,null,null,null,null,null,null,"Col à masquer"]
["Code 1","Code 2","Code 3","Code 4","Code 5","Code 6","Code 7","Code 8","Lib 6",0,0,0,null,null,null,null,null,null,"Col à masquer"]
["Code 1","Code 2","Code 3","Code 4","Code 5","Code 6","Code 7","Code 8","Total",{"$f":"SUM(J226:J231)","v":0},{"$f":"SUM(K226:K231)","v":0},{"$f":"SUM(L226:L231)","v":0},null,null,null,null,null,null,"Col à masquer"]
["Code 1","Code 2","Code 3","Code 4","Code 5","Code 6","Code 7","Code 8",null,null,null,null,null,null,null,null,null,null,"Col à masquer"]
["Code 1","Code 2","Code 3","Code 4","Code 5","Code 6","Code 7","Code 8",null,null,null,null,null,null,null,null,null,null,"Col à masquer"]
["Code 1","Code 2","Code 3","Code 4","Code 5","Code 6","Code 7","Code 8","Rubrique 2","Var 1","Var 2","Var 3",null,null,null,null,null,null,"Col à masquer"]
["Code 1","Code 2","Code 3","Code 4","Code 5","Code 6","Code 7","Code 8","Lib 1",0,0,0,null,null,null,null,null,null,"Col à masquer"]
["Code 1","Code 2","Code 3","Code 4","Code 5","Code 6","Code 7","Code 8","Lib 2",0,0,0,null,null,null,null,null,null,"Col à masquer"]
["Code 1","Code 2","Code 3","Code 4","Code 5","Code 6","Code 7","Code 8","Lib 3",0,0,0,null,null,null,null,null,null,"Col à masquer"]
["Code 1","Code 2","Code 3","Code 4","Code 5","Code 6","Code 7","Code 8","Lib 4",0,0,0,null,null,null,null,null,null,"Col à masquer"]
["Code 1","Code 2","Code 3","Code 4","Code 5","Code 6","Code 7","Code 8","Lib 5",0,0,0,null,null,null,null,null,null,"Col à masquer"]
["Code 1","Code 2","Code 3","Code 4","Code 5","Code 6","Code 7","Code 8","Lib 6",0,0,0,null,null,null,null,null,null,"Col à masquer"]
["Code 1","Code 2","Code 3","Code 4","Code 5","Code 6","Code 7","Code 8","Total",{"$f":"SUM(J236:J241)","v":0},{"$f":"SUM(K236:K241)","v":0},{"$f":"SUM(L236:L241)","v":0},null,null,null,null,null,null,"Col à masquer"]
["Code 1","Code 2","Code 3","Code 4","Code 5","Code 6","Code 7","Code 8",null,null,null,null,null,null,null,null,null,null,"Col à masquer"]
["Code 1","Code 2","Code 3","Code 4","Code 5","Code 6","Code 7","Code 8",null,null,null,null,null,null,null,null,null,null,"Col à masquer"]
["Code 1","Code 2","Code 3","Code 4","Code 5","Code 6","Code 7","Code 8","II-2-1-2 Dépenses",null,null,null,null,null,null,null,null,null,"Col à masquer"]
["Code 1","Code 2","Code 3","Code 4","Code 5","Code 6","Code 7","Code 8",null,"Var 1","Var 2","Var 3",null,null,null,null,null,null,"Col à masquer"]
["Code 1","Code 2","Code 3","Code 4","Code 5","Code 6","Code 7","Code 8","Lib 1",7,0,0,null,null,null,null,null,null,"Col à masquer"]
["Code 1","Code 2","Code 3","Code 4","Code 5","Code 6","Code 7","Code 8","Lib 2",null,8,0,null,null,null,null,null,null,"Col à masquer"]
["Code 1","Code 2","Code 3","Code 4","Code 5","Code 6","Code 7","Code 8","Total",{"$f":"SUM(J247:J248)","v":7},{"$f":"SUM(K247:K248)","v":8},{"$f":"SUM(L247:L248)","v":0},null,null,null,null,null,null,"Col à masquer"]
["Code 1","Code 2","Code 3","Code 4","Code 5","Code 6","Code 7","Code 8",null,null,null,null,null,null,null,null,null,null,"Col à masquer"]
["Code 1","Code 2","Code 3","Code 4","Code 5","Code 6","Code 7","Code 8",null,null,null,null,null,null,null,null,null,null,"Col à masquer"]
["Code 1","Code 2","Code 3","Code 4","Code 5","Code 6","Code 7","Code 8","II-2-2 études",null,null,null,null,null,null,null,null,null,"Col à masquer"]
["Code 1","Code 2","Code 3","Code 4","Code 5","Code 6","Code 7","Code 8",null,null,null,null,null,null,null,null,null,null,"Col à masquer"]
["Code 1","Code 2","Code 3","Code 4","Code 5","Code 6","Code 7","Code 8","II-2-2-1 Bénéficiaires",null,null,null,null,null,null,null,null,null,"Col à masquer"]
["Code 1","Code 2","Code 3","Code 4","Code 5","Code 6","Code 7","Code 8",null,null,null,null,null,null,null,null,null,null,"Col à masquer"]
["Code 1","Code 2","Code 3","Code 4","Code 5","Code 6","Code 7","Code 8","Dispositif","Var 1","Var 2","Var 3",null,null,null,null,null,null,"Col à masquer"]
["Code 1","Code 2","Code 3","Code 4","Code 5","Code 6","Code 7","Code 8","Lib 1",0,0,0,null,null,null,null,null,null,"Col à masquer"]
["Code 1","Code 2","Code 3","Code 4","Code 5","Code 6","Code 7","Code 8","Lib 2",0,0,0,null,null,null,null,null,null,"Col à masquer"]
["Code 1","Code 2","Code 3","Code 4","Code 5","Code 6","Code 7","Code 8","Lib 3",0,0,0,null,null,null,null,null,null,"Col à masquer"]
["Code 1","Code 2","Code 3","Code 4","Code 5","Code 6","Code 7","Code 8","Lib 4",0,0,0,null,null,null,null,null,null,"Col à masquer"]
["Code 1","Code 2","Code 3","Code 4","Code 5","Code 6","Code 7","Code 8","Lib 5",0,0,0,null,null,null,null,null,null,"Col à masquer"]
["Code 1","Code 2","Code 3","Code 4","Code 5","Code 6","Code 7","Code 8","Lib 6",0,0,0,null,null,null,null,null,null,"Col à masquer"]
["Code 1","Code 2","Code 3","Code 4","Code 5","Code 6","Code 7","Code 8","Total",{"$f":"SUM(J257:J262)","v":0},{"$f":"SUM(K257:K262)","v":0},{"$f":"SUM(L257:L262)","v":0},null,null,null,null,null,null,"Col à masquer"]
["Code 1","Code 2","Code 3","Code 4","Code 5","Code 6","Code 7","Code 8","nombre bénéficiaires",0,0,0,null,null,null,null,null,null,"Col à masquer"]
["Code 1","Code 2","Code 3","Code 4","Code 5","Code 6","Code 7","Code 8",null,null,null,null,null,null,null,null,null,null,"Col à masquer"]
["Code 1","Code 2","Code 3","Code 4","Code 5","Code 6","Code 7","Code 8",null,null,null,null,null,null,null,null,null,null,"Col à masquer"]
["Code 1","Code 2","Code 3","Code 4","Code 5","Code 6","Code 7","Code 8","Dispositif","Var 1","Var 2","Var 3",null,null,null,null,null,null,"Col à masquer"]
["Code 1","Code 2","Code 3","Code 4","Code 5","Code 6","Code 7","Code 8","Lib 1",0,0,0,null,null,null,null,null,null,"Col à masquer"]
["Code 1","Code 2","Code 3","Code 4","Code 5","Code 6","Code 7","Code 8","Lib 2",0,0,0,null,null,null,null,null,null,"Col à masquer"]
["Code 1","Code 2","Code 3","Code 4","Code 5","Code 6","Code 7","Code 8","Lib 3",0,0,0,null,null,null,null,null,null,"Col à masquer"]
["Code 1","Code 2","Code 3","Code 4","Code 5","Code 6","Code 7","Code 8","Lib 4",0,0,0,null,null,null,null,null,null,"Col à masquer"]
["Code 1","Code 2","Code 3","Code 4","Code 5","Code 6","Code 7","Code 8","Lib 5",0,0,0,null,null,null,null,null,null,"Col à masquer"]
["Code 1","Code 2","Code 3","Code 4","Code 5","Code 6","Code 7","Code 8","Lib 6",0,0,0,null,null,null,null,null,null,"Col à masquer"]
["Code 1","Code 2","Code 3","Code 4","Code 5","Code 6","Code 7","Code 8","Total",{"$f":"SUM(J268:J273)","v":0},{"$f":"SUM(K268:K273)","v":0},{"$f":"SUM(L268:L273)","v":0},null,null,null,null,null,null,"Col à masquer"]
["Code 1","Code 2","Code 3","Code 4","Code 5","Code 6","Code 7","Code 8","nombre bénéficiaires",0,0,0,null,null,null,null,null,null,"Col à masquer"]
["Code 1","Code 2","Code 3","Code 4","Code 5","Code 6","Code 7","Code 8",null,null,null,null,null,null,null,null,null,null,"Col à masquer"]
["Code 1","Code 2","Code 3","Code 4","Code 5","Code 6","Code 7","Code 8",null,null,null,null,null,null,null,null,null,null,"Col à masquer"]
["Code 1","Code 2","Code 3","Code 4","Code 5","Code 6","Code 7","Code 8","Dispositif","Var 1","Var 2","Var 3",null,null,null,null,null,null,"Col à masquer"]
["Code 1","Code 2","Code 3","Code 4","Code 5","Code 6","Code 7","Code 8","Lib 1",0,0,0,null,null,null,null,null,null,"Col à masquer"]
["Code 1","Code 2","Code 3","Code 4","Code 5","Code 6","Code 7","Code 8","Lib 2",0,0,0,null,null,null,null,null,null,"Col à masquer"]
["Code 1","Code 2","Code 3","Code 4","Code 5","Code 6","Code 7","Code 8","Lib 3",0,0,0,null,null,null,null,null,null,"Col à masquer"]
["Code 1","Code 2","Code 3","Code 4","Code 5","Code 6","Code 7","Code 8","Lib 4",0,0,0,null,null,null,null,null,null,"Col à masquer"]
["Code 1","Code 2","Code 3","Code 4","Code 5","Code 6","Code 7","Code 8","Lib 5",0,0,0,null,null,null,null,null,null,"Col à masquer"]
["Code 1","Code 2","Code 3","Code 4","Code 5","Code 6","Code 7","Code 8","Lib 6",0,0,0,null,null,null,null,null,null,"Col à masquer"]
["Code 1","Code 2","Code 3","Code 4","Code 5","Code 6","Code 7","Code 8","Total",{"$f":"SUM(J279:J284)","v":0},{"$f":"SUM(K279:K284)","v":0},{"$f":"SUM(L279:L284)","v":0},null,null,null,null,null,null,"Col à masquer"]
["Code 1","Code 2","Code 3","Code 4","Code 5","Code 6","Code 7","Code 8","nombre bénéficiaires",0,0,0,null,null,null,null,null,null,"Col à masquer"]
["Code 1","Code 2","Code 3","Code 4","Code 5","Code 6","Code 7","Code 8",null,null,null,null,null,null,null,null,null,null,"Col à masquer"]
["Code 1","Code 2","Code 3","Code 4","Code 5","Code 6","Code 7","Code 8",null,null,null,null,null,null,null,null,null,null,"Col à masquer"]
["Code 1","Code 2","Code 3","Code 4","Code 5","Code 6","Code 7","Code 8","II-2-2-2 Dépenses",null,null,null,null,null,null,null,null,null,"Col à masquer"]
["Code 1","Code 2","Code 3","Code 4","Code 5","Code 6","Code 7","Code 8",null,"Var 1","Var 2","Var 3",null,null,null,null,null,null,"Col à masquer"]
["Code 1","Code 2","Code 3","Code 4","Code 5","Code 6","Code 7","Code 8","Lib 1",0,0,0,null,null,null,null,null,null,"Col à masquer"]
["Code 1","Code 2","Code 3","Code 4","Code 5","Code 6","Code 7","Code 8","Lib 2",0,0,0,null,null,null,null,null,null,"Col à masquer"]
["Code 1","Code 2","Code 3","Code 4","Code 5","Code 6","Code 7","Code 8","Lib 3",0,0,0,null,null,null,null,null,null,"Col à masquer"]
["Code 1","Code 2","Code 3","Code 4","Code 5","Code 6","Code 7","Code 8","Total",{"$f":"SUM(J291:J293)","v":0},{"$f":"SUM(K291:K293)","v":0},{"$f":"SUM(L291:L293)","v":0},null,null,null,null,null,null,"Col à masquer"]
["Code 1","Code 2","Code 3","Code 4","Code 5","Code 6","Code 7","Code 8",null,null,null,null,null,null,null,null,null,null,"Col à masquer"]
["Code 1","Code 2","Code 3","Code 4","Code 5","Code 6","Code 7","Code 8",null,null,null,null,null,null,null,null,null,null,"Col à masquer"]
["Code 1","Code 2","Code 3","Code 4","Code 5","Code 6","Code 7","Code 8","III  TITRE 3",null,null,null,null,null,null,null,null,null,"Col à masquer"]
["Code 1","Code 2","Code 3","Code 4","Code 5","Code 6","Code 7","Code 8",null,null,null,null,null,null,null,null,null,null,"Col à masquer"]
["Code 1","Code 2","Code 3","Code 4","Code 5","Code 6","Code 7","Code 8",null,null,null,null,null,null,null,null,null,null,"Col à masquer"]
["Code 1","Code 2","Code 3","Code 4","Code 5","Code 6","Code 7","Code 8","III-1 Dispositif",null,null,null,null,null,null,null,null,null,"Col à masquer"]
["Code 1","Code 2","Code 3","Code 4","Code 5","Code 6","Code 7","Code 8",null,"Var 1","Var 2","Var 3",null,null,null,null,null,null,"Col à masquer"]
["Code 1","Code 2","Code 3","Code 4","Code 5","Code 6","Code 7","Code 8","Lib 1",0,0,0,null,null,null,null,null,null,"Col à masquer"]
["Code 1","Code 2","Code 3","Code 4","Code 5","Code 6","Code 7","Code 8","Lib 2",0,0,0,null,null,null,null,null,null,"Col à masquer"]
["Code 1","Code 2","Code 3","Code 4","Code 5","Code 6","Code 7","Code 8","Lib 3",0,0,0,null,null,null,null,null,null,"Col à masquer"]
["Code 1","Code 2","Code 3","Code 4","Code 5","Code 6","Code 7","Code 8","Total",{"$f":"SUM(J303:J304)","v":0},{"$f":"SUM(K303:K304)","v":0},{"$f":"SUM(L303:L304)","v":0},null,null,null,null,null,null,"Col à masquer"]
["Code 1","Code 2","Code 3","Code 4","Code 5","Code 6","Code 7","Code 8",null,null,null,null,null,null,null,null,null,null,"Col à masquer"]
["Code 1","Code 2","Code 3","Code 4","Code 5","Code 6","Code 7","Code 8",null,null,null,null,null,null,null,null,null,null,"Col à masquer"]
["Code 1","Code 2","Code 3","Code 4","Code 5","Code 6","Code 7","Code 8","III-2 Dispositif",null,null,null,null,null,null,null,null,null,"Col à masquer"]
["Code 1","Code 2","Code 3","Code 4","Code 5","Code 6","Code 7","Code 8",null,"Var 1","Var 2","Var 3",null,null,null,null,null,null,"Col à masquer"]
["Code 1","Code 2","Code 3","Code 4","Code 5","Code 6","Code 7","Code 8","Lib 1",0,0,0,null,null,null,null,null,null,"Col à masquer"]
["Code 1","Code 2","Code 3","Code 4","Code 5","Code 6","Code 7","Code 8","Lib 2",0,0,0,null,null,null,null,null,null,"Col à masquer"]
["Code 1","Code 2","Code 3","Code 4","Code 5","Code 6","Code 7","Code 8",null,null,null,null,null,null,null,null,null,null,"Col à masquer"]
["Code 1","Code 2","Code 3","Code 4","Code 5","Code 6","Code 7","Code 8","Préciser :",null,null,null,null,null,null,null,null,null,"Col à masquer"]
["Code 1","Code 2","Code 3","Code 4","Code 5","Code 6","Code 7","Code 8",null,null,null,null,null,null,null,null,null,null,"Col à masquer"]
["Code 1","Code 2","Code 3","Code 4","Code 5","Code 6","Code 7","Code 8",null,null,null,null,null,null,null,null,null,null,"Col à masquer"]
["Code 1","Code 2","Code 3","Code 4","Code 5","Code 6","Code 7","Code 8",null,null,null,null,null,null,null,null,null,null,"Col à masquer"]
["Code 1","Code 2","Code 3","Code 4","Code 5","Code 6","Code 7","Code 8",null,null,null,null,null,null,null,null,null,null,"Col à masquer"]
["Code 1","Code 2","Code 3","Code 4","Code 5","Code 6","Code 7","Code 8","III-3 Dispositif",null,null,null,null,null,null,null,null,null,"Col à masquer"]
["Code 1","Code 2","Code 3","Code 4","Code 5","Code 6","Code 7","Code 8",null,null,null,null,null,null,null,null,null,null,"Col à masquer"]
["Code 1","Code 2","Code 3","Code 4","Code 5","Code 6","Code 7","Code 8",null,"Var 1","Var 2","Var 3",null,null,null,null,null,null,"Col à masquer"]
["Code 1","Code 2","Code 3","Code 4","Code 5","Code 6","Code 7","Code 8","Lib 1",0,0,0,null,null,null,null,null,null,"Col à masquer"]
["Code 1","Code 2","Code 3","Code 4","Code 5","Code 6","Code 7","Code 8","Lib 2",0,0,0,null,null,null,null,null,null,"Col à masquer"]
["Code 1","Code 2","Code 3","Code 4","Code 5","Code 6","Code 7","Code 8","Lib 3",0,0,0,null,null,null,null,null,null,"Col à masquer"]
["Code 1","Code 2","Code 3","Code 4","Code 5","Code 6","Code 7","Code 8",null,null,null,null,null,null,null,null,null,null,"Col à masquer"]
["Code 1","Code 2","Code 3","Code 4","Code 5","Code 6","Code 7","Code 8",null,null,null,null,null,null,null,null,null,null,"Col à masquer"]
["Code 1","Code 2","Code 3","Code 4","Code 5","Code 6","Code 7","Code 8","III-4 Dispositif",null,null,null,null,null,null,null,null,null,"Col à masquer"]
["Code 1","Code 2","Code 3","Code 4","Code 5","Code 6","Code 7","Code 8",null,null,null,null,null,null,null,null,null,null,"Col à masquer"]
["Code 1","Code 2","Code 3","Code 4","Code 5","Code 6","Code 7","Code 8",null,"Var 1","Var 2","Var 3",null,null,null,null,null,null,"Col à masquer"]
["Code 1","Code 2","Code 3","Code 4","Code 5","Code 6","Code 7","Code 8","Lib 1",0,0,0,null,null,null,null,null,null,"Col à masquer"]
["Code 1","Code 2","Code 3","Code 4","Code 5","Code 6","Code 7","Code 8","Lib 2",0,0,0,null,null,null,null,null,null,"Col à masquer"]
["Code 1","Code 2","Code 3","Code 4","Code 5","Code 6","Code 7","Code 8",null,null,null,null,null,null,null,null,null,null,"Col à masquer"]
["Code 1","Code 2","Code 3","Code 4","Code 5","Code 6","Code 7","Code 8",null,null,null,null,null,null,null,null,null,null,"Col à masquer"]
["Code 1","Code 2","Code 3","Code 4","Code 5","Code 6","Code 7","Code 8",null,null,null,null,null,null,null,null,null,null,"Col à masquer"]
["Code 1","Code 2","Code 3","Code 4","Code 5","Code 6","Code 7","Code 8","IV TITRE 4 ",null,null,null,null,null,null,null,null,null,"Col à masquer"]
["Code 1","Code 2","Code 3","Code 4","Code 5","Code 6","Code 7","Code 8",null,null,null,null,null,null,null,null,null,null,"Col à masquer"]
["Code 1","Code 2","Code 3","Code 4","Code 5","Code 6","Code 7","Code 8",null,"Var 4","Var 5","Var 6","Var 7","Var 8","Var 9","Var 10","Total",null,"Col à masquer"]
["Code 1","Code 2","Code 3","Code 4","Code 5","Code 6","Code 7","Code 8","Compte 1",0,87,649,0,368,0,0,{"$f":"SUM(J337:P337)","v":1104},null,"Col à masquer"]
["Code 1","Code 2","Code 3","Code 4","Code 5","Code 6","Code 7","Code 8","Compte 2",0,0,0,0,0,0,0,0,null,"Col à masquer"]
["Code 1","Code 2","Code 3","Code 4","Code 5","Code 6","Code 7","Code 8","Compte 3",0,0,0,0,0,5,0,5,null,"Col à masquer"]
["Code 1","Code 2","Code 3","Code 4","Code 5","Code 6","Code 7","Code 8","Compte 4",0,0,0,0,0,0,0,0,null,"Col à masquer"]
["Code 1","Code 2","Code 3","Code 4","Code 5","Code 6","Code 7","Code 8","Compte 5",0,0,0,0,0,0,0,0,null,"Col à masquer"]
["Code 1","Code 2","Code 3","Code 4","Code 5","Code 6","Code 7","Code 8","Compte 6",0,0,0,0,0,0,0,0,null,"Col à masquer"]
["Code 1","Code 2","Code 3","Code 4","Code 5","Code 6","Code 7","Code 8",null,null,null,null,null,null,null,null,null,null,"Col à masquer"]
["Code 1","Code 2","Code 3","Code 4","Code 5","Code 6","Code 7","Code 8",null,null,null,null,null,null,null,null,null,null,"Col à masquer"]
["Code 1","Code 2","Code 3","Code 4","Code 5","Code 6","Code 7","Code 8",null,null,null,null,null,null,null,null,null,null,"Col à masquer"]
["Code 1","Code 2","Code 3","Code 4","Code 5","Code 6","Code 7","Code 8","V TITRE 5",null,null,null,null,null,null,null,null,null,"Col à masquer"]
["Code 1","Code 2","Code 3","Code 4","Code 5","Code 6","Code 7","Code 8",null,null,null,null,null,null,null,null,null,null,"Col à masquer"]
["Code 1","Code 2","Code 3","Code 4","Code 5","Code 6","Code 7","Code 8",null,null,null,null,null,null,null,null,null,null,"Col à masquer"]
["Code 1","Code 2","Code 3","Code 4","Code 5","Code 6","Code 7","Code 8","Prog A",null,null,null,null,null,null,null,null,null,"Col à masquer"]
["Code 1","Code 2","Code 3","Code 4","Code 5","Code 6","Code 7","Code 8",null,"Var 4","Var 5","Var 6","Var 7","Var 8","Var 9","Var 10","Total",null,"Col à masquer"]
["Code 1","Code 2","Code 3","Code 4","Code 5","Code 6","Code 7","Code 8","Compte 1",0,0,0,0,0,0,0,{"$f":"SUM(J351:P351)","v":0},null,"Col à masquer"]
["Code 1","Code 2","Code 3","Code 4","Code 5","Code 6","Code 7","Code 8","Compte 2",0,0,0,0,0,0,0,0,null,"Col à masquer"]
["Code 1","Code 2","Code 3","Code 4","Code 5","Code 6","Code 7","Code 8","Compte 3",0,0,0,0,0,0,0,0,null,"Col à masquer"]
["Code 1","Code 2","Code 3","Code 4","Code 5","Code 6","Code 7","Code 8","Compte 4",0,0,0,0,0,0,0,0,null,"Col à masquer"]
["Code 1","Code 2","Code 3","Code 4","Code 5","Code 6","Code 7","Code 8","Compte 5",0,0,0,0,0,0,0,0,null,"Col à masquer"]
["Code 1","Code 2","Code 3","Code 4","Code 5","Code 6","Code 7","Code 8","Compte 6",0,0,0,0,0,0,0,0,null,"Col à masquer"]
["Code 1","Code 2","Code 3","Code 4","Code 5","Code 6","Code 7","Code 8",null,null,null,null,null,null,null,null,null,null,"Col à masquer"]
["Code 1","Code 2","Code 3","Code 4","Code 5","Code 6","Code 7","Code 8",null,null,null,null,null,null,null,null,null,null,"Col à masquer"]
["Code 1","Code 2","Code 3","Code 4","Code 5","Code 6","Code 7","Code 8","Prog B",null,null,null,null,null,null,null,null,null,"Col à masquer"]
["Code 1","Code 2","Code 3","Code 4","Code 5","Code 6","Code 7","Code 8",null,"Var 4","Var 5","Var 6","Var 7","Var 8","Var 9","Var 10","Total",null,"Col à masquer"]
["Code 1","Code 2","Code 3","Code 4","Code 5","Code 6","Code 7","Code 8","Compte 1",0,0,0,0,0,0,0,{"$f":"SUM(J361:P361)","v":0},null,"Col à masquer"]
["Code 1","Code 2","Code 3","Code 4","Code 5","Code 6","Code 7","Code 8","Compte 2",0,0,0,0,0,0,0,0,null,"Col à masquer"]
["Code 1","Code 2","Code 3","Code 4","Code 5","Code 6","Code 7","Code 8","Compte 3",0,0,0,0,0,0,0,0,null,"Col à masquer"]
["Code 1","Code 2","Code 3","Code 4","Code 5","Code 6","Code 7","Code 8","Compte 4",0,0,0,0,0,0,0,0,null,"Col à masquer"]
["Code 1","Code 2","Code 3","Code 4","Code 5","Code 6","Code 7","Code 8","Compte 5",0,0,0,0,0,0,0,0,null,"Col à masquer"]
["Code 1","Code 2","Code 3","Code 4","Code 5","Code 6","Code 7","Code 8","Compte 6",0,0,0,0,0,0,0,0,null,"Col à masquer"]
["Code 1","Code 2","Code 3","Code 4","Code 5","Code 6","Code 7","Code 8",null,null,null,null,null,null,null,null,null,null,"Col à masquer"]
["Code 1","Code 2","Code 3","Code 4","Code 5","Code 6","Code 7","Code 8","Prog C",null,null,null,null,null,null,null,null,null,"Col à masquer"]
["Code 1","Code 2","Code 3","Code 4","Code 5","Code 6","Code 7","Code 8",null,"Var 4","Var 5","Var 6","Var 7","Var 8","Var 9","Var 10","Total",null,"Col à masquer"]
["Code 1","Code 2","Code 3","Code 4","Code 5","Code 6","Code 7","Code 8","Compte 1",0,0,0,0,0,0,0,{"$f":"SUM(J370:P370)","v":0},null,"Col à masquer"]
["Code 1","Code 2","Code 3","Code 4","Code 5","Code 6","Code 7","Code 8","Compte 2",0,0,0,0,0,0,0,0,null,"Col à masquer"]
["Code 1","Code 2","Code 3","Code 4","Code 5","Code 6","Code 7","Code 8","Compte 3",0,0,0,0,0,0,0,0,null,"Col à masquer"]
["Code 1","Code 2","Code 3","Code 4","Code 5","Code 6","Code 7","Code 8","Compte 4",0,0,0,0,0,0,0,0,null,"Col à masquer"]
["Code 1","Code 2","Code 3","Code 4","Code 5","Code 6","Code 7","Code 8","Compte 5",0,0,0,0,0,0,0,0,null,"Col à masquer"]
["Code 1","Code 2","Code 3","Code 4","Code 5","Code 6","Code 7","Code 8","Compte 6",0,0,0,0,0,0,0,0,null,"Col à masquer"]

{"sheet":"objectifs de la protection","index":1,"n_rows":8,"n_cols":2,"rows_kept":8,"cut":false,"hidden":false,"merged":[]}
[]
["ne pas autoriser :"]
["- insertion / suppression col / ligne"]
["- afficher / modifier les colonnes masquées (colonnes de A à H, puis col S sont masquées)"]
["- les lettres"]
[null,"* sauf dans l'encart situé à la ligne 314 pour permettre les commentaires (col I, J, K, L)"]
[null,"* sauf l'encart situé à la ligne 4 pour mettre le nom de la région"]
["- les cellules vides : toutes les cellules des tableaux doivent être remplies par des chiffres (par défaut, il y a un zéro)"]

{"sheet":"Liste","index":2,"n_rows":35,"n_cols":3,"rows_kept":35,"cut":false,"hidden":false,"merged":[]}
["TITRE","Tableau","Plage"]
["Titre 1","Prestation 1","J12:L13"]
["Titre 1","Prestation 2","J17:L24"]
["Titre 1","Prestation 3","J28:L35"]
["Titre 1","Prestation 4","J39:L46"]
["Titre 1","Prestation 5","J50:L57"]
["Titre 1","Prestation 6","J61:L68"]
["Titre 1","Prestation 7","J72:L79"]
["Titre 1","Prestation 8","J84:L91"]
["Titre 1","Prestation 9","J95:L102"]
["Titre 1","Dépenses","J107:L116"]
["Titre 1","Nombres de jours","J121:L126"]
["Titre 2","Aide 1","J136:L142"]
["Titre 2","Aide 2","J146:L150"]
["Titre 2","Aide 3","J154:L160"]
["Titre 2","Aide 4","J164:L171"]
["Titre 2","Aide 5","J175:L182"]
["Titre 2","Aide 6","J186:L190"]
["Titre 2","Aide 7","J194:L200"]
["Titre 2","Dépenses","J205:L212"]
["Titre 2","Rubrique 1","J226:L232"]
["Titre 2","Rubrique 2","J236:L242"]
["Titre 2","Dépenses","J247:L249"]
["Titre 2","Dispositif","J257:L264"]
["Titre 2","Dispositif","J268:L275"]
["Titre 2","Dispositif","J279:L286"]
["Titre 2","Dépenses","J291:L294"]
["Titre 3","Dispositif","J302:L305"]
["Titre 3","Dispositif","J310:L311"]
["Titre 3","Dispositif","J321:L323"]
["Titre 3","Dispositif","J329:L330"]
["Titre 4",null,"J337:Q342"]
["Titre 5","Prog A","J351:Q356"]
["Titre 5","Prog B","J361:Q366"]
["Titre 5","Prog C","J370:Q375"]